fUST/lending_fUST_20260306
["ID","MTS","AMOUNT","RATE_DAILY","PERIOD"]
[407745993,1772736640345,-1000.0,5.6e-05,2]
[407745994,1772736640355,-1000.0,5.6e-05,2]
[407745995,1772736640365,-1000.0,5.6e-05,2]
[407745996,1772736640375,-1000.0,5.6e-05,2]
[407745997,1772736640388,-8132.79161763,5.682e-05,2]
[407745998,1772736640399,-1000.0,5.898e-05,2]
[407745999,1772736640411,-791.0,5.898e-05,2]
[407746000,1772736640421,-599.60298507,5.91e-05,2]
[407746001,1772736640431,-2398.4119403,5.91e-05,2]
[407746002,1772736640443,-514.81857785,6.458e-05,2]
[407746003,1772736640454,-2487.15318209,6.458e-05,2]
[407746004,1772736640464,-1000.0,6.488e-05,2]
[407746005,1772736640475,-1000.0,6.488e-05,2]
[407746006,1772736640485,-359.96747991,6.571e-05,2]
[407746007,1772736640495,-477.03,6.598e-05,2]
[407746008,1772736640505,-179.47311909,6.62e-05,2]
[407746009,1772736640515,-326.47797377,6.849e-05,2]
[407746010,1772736640525,-346.756391,6.849e-05,2]
[407746011,1772736640535,-777.78434169,6.849e-05,2]
[407746012,1772736640545,-437.5036922,6.849e-05,2]
[407746013,1772736640554,-243.05760678,6.849e-05,2]
[407746014,1772736640565,-467.47825106,6.849e-05,2]
[407746015,1772736640575,-409.04346967,6.849e-05,2]
[407746016,1772736640585,-3311.67875589,6.849e-05,2]
[407746017,1772736640595,-2299.77691382,6.849e-05,2]
[407746018,1772736640606,-1471.85722484,6.849e-05,2]
[407746020,1772736640616,-827.91968897,6.849e-05,2]
[407746022,1772736640627,-459.95538276,6.849e-05,2]
[407746024,1772736640637,-1910.08815956,6.849e-05,3]
[407746026,1772736640648,-5444.13088363,6.849e-05,2]
[407746028,1772736640658,-3999.76962879,6.849e-05,2]
[407746029,1772736640668,-2777.61779777,6.849e-05,2]
[407746030,1772736640681,-1777.67539057,6.849e-05,2]
[407746031,1772736640691,-999.9424072,6.849e-05,2]
[407746032,1772736640701,-555.52355955,6.849e-05,2]
[407746033,1772736640711,-3559.67520363,6.849e-05,3]
[407746034,1772736640721,-170.23836734,6.849e-05,2]
[407746035,1772736640731,-2286.17535376,6.849e-05,2]
[407746036,1772736640740,-1463.15222641,6.849e-05,2]
[407746037,1772736640750,-823.02312736,6.849e-05,2]
[407746038,1772736640759,-457.23507075,6.849e-05,2]
[407746039,1772736640769,-1173.18563037,6.849e-05,3]
[407746040,1772736640779,-360.41415271,6.849e-05,2]
[407746041,1772736640790,-315.36238363,6.849e-05,2]
[407746042,1772736640801,-157.6295458,6.849e-05,3]
[407746043,1772736640811,-3068.61606588,6.849e-05,2]
[407746044,1772736640821,-1963.91428216,6.849e-05,2]
[407746045,1772736640831,-1104.70178372,6.849e-05,2]
[407746046,1772736640841,-613.72321318,6.849e-05,2]
[407746047,1772736640851,-1614.18950662,6.849e-05,3]
[407746048,1772736640861,-305.75615416,6.851e-05,2]
[407746049,1772736640872,-1903.63724886,6.897e-05,3]
[407746050,1772736640882,-191.76405027,6.947e-05,2]
[407746051,1772736640893,-4706.29331483,6.978e-05,2]
[407746052,1772736640903,-3457.68488437,6.978e-05,2]
[407746053,1772736640913,-2401.17005859,6.978e-05,2]
[407746054,1772736640923,-1536.7488375,6.978e-05,2]
[407746055,1772736640934,-864.42122109,6.978e-05,2]
[407746056,1772736640944,-480.23401172,6.978e-05,2]
[407746057,1772736640956,-262.62170351,6.978e-05,2]
[407746058,1772736640967,-1235.04641305,7e-05,2]
[407746059,1772736640979,-2579.17784983,7.006e-05,2]
[407746060,1772736640990,-317.53646663,7.038e-05,2]
[407746061,1772736641003,-327.71645169,7.042e-05,2]
[407746062,1772736641014,-589.88961304,7.042e-05,2]
[407746063,1772736641027,-1048.69264541,7.042e-05,2]
[407746064,1772736641038,-1638.58225845,7.042e-05,2]
[407746065,1772736641049,-2357.19889372,7.042e-05,2]
[407746066,1772736641059,-234.77937901,7.042e-05,2]
[407746067,1772736641069,-422.60288222,7.042e-05,2]
[407746068,1772736641079,-751.29401283,7.042e-05,2]
[407746069,1772736641088,-1172.72299815,7.042e-05,2]
[407746070,1772736641098,-1000.0,7.137e-05,2]
[407746071,1772736641108,-1000.0,7.137e-05,2]
[407746072,1772736641119,-579.0,7.137e-05,2]
[407746073,1772736641131,-500.0,7.2e-05,2]
[407746074,1772736641143,-2100.0,7.2e-05,2]
[407746075,1772736641154,-2100.0,7.2e-05,2]
[407746076,1772736641164,-2100.0,7.2e-05,2]
[407746077,1772736641174,-2100.0,7.2e-05,2]
[407746078,1772736641187,-2100.0,7.2e-05,2]
[407746079,1772736641198,-2100.0,7.2e-05,2]
[407746080,1772736641209,-2100.0,7.2e-05,2]
[407746081,1772736641219,-2100.0,7.2e-05,2]
[407746082,1772736641548,-2100.0,7.2e-05,2]
[407746083,1772736641560,-2100.0,7.2e-05,2]
[407746084,1772736641570,-500.0,7.2e-05,2]
[407746085,1772736641579,-2100.0,7.2e-05,2]
[407746086,1772736641588,-2100.0,7.2e-05,2]
[407746087,1772736641598,-2100.0,7.2e-05,2]
[407746088,1772736641607,-2602.17527271,7.2e-05,2]
[407746089,1772736641620,-500.0,7.2e-05,2]
[407746090,1772736641629,-600.0,7.2e-05,2]
[407746091,1772736641638,-600.0,7.2e-05,2]
[407746092,1772736641647,-600.0,7.2e-05,2]
[407746093,1772736641658,-600.0,7.2e-05,2]
[407746094,1772736641667,-600.0,7.2e-05,2]
[407746095,1772736641677,-600.0,7.2e-05,2]
[407746096,1772736641688,-600.0,7.2e-05,2]
[407746097,1772736641698,-600.0,7.2e-05,2]
[407746098,1772736641707,-600.0,7.2e-05,2]
[407746099,1772736641717,-600.0,7.2e-05,2]
[407746100,1772736641727,-900.0,7.2e-05,2]
[407746101,1772736641738,-600.0,7.2e-05,2]
[407746102,1772736641748,-900.0,7.2e-05,2]
[407746103,1772736641758,-600.0,7.2e-05,2]
[407746104,1772736641768,-900.0,7.2e-05,2]
[407746105,1772736641780,-600.0,7.2e-05,2]
[407746106,1772736641790,-900.0,7.2e-05,2]
[407746107,1772736641799,-1016.96400907,7.2e-05,2]
[407746108,1772736641809,-900.0,7.2e-05,2]
[407746109,1772736641819,-900.0,7.2e-05,2]
[407746110,1772736641828,-900.0,7.2e-05,2]
[407746111,1772736641840,-900.0,7.2e-05,2]
[407746112,1772736641849,-900.0,7.2e-05,2]
[407746113,1772736641860,-900.0,7.2e-05,2]
[407746114,1772736641869,-900.0,7.2e-05,2]
[407746115,1772736641879,-900.0,7.2e-05,2]
[407746116,1772736641888,-1584.24078968,7.2e-05,2]
[407746117,1772736641898,-500.0,7.2e-05,2]
[407746118,1772736641908,-500.0,7.2e-05,2]
[407746119,1772736641918,-500.0,7.2e-05,2]
[407746120,1772736641928,-500.0,7.2e-05,2]
[407746121,1772736641938,-690.18120688,7.2e-05,2]
[407746122,1772736641948,-500.0,7.2e-05,2]
[407746123,1772736641957,-728.17682755,7.2e-05,2]
[407746124,1772736641968,-161.86716562,7.234e-05,2]
[407746125,1772736641978,-2674.60743027,7.554e-05,2]
[407746126,1772736641990,-8812.46790319,7.573e-05,2]
[407746127,1772736641999,-800.0,7.828e-05,2]
[407746128,1772736642009,-1000.0,7.85e-05,2]
[407746129,1772736642020,-1000.0,7.85e-05,2]
[407746130,1772736642030,-1000.0,7.85e-05,2]
[407746131,1772736642039,-4422.31004936,7.92e-05,2]
[407746132,1772736642049,-1298.42025008,7.92e-05,2]
[407746133,1772736642058,-166.0,7.973e-05,2]
[407746134,1772736642069,-151.0,7.973e-05,2]
[407746135,1772736642079,-230.02195816,7.973e-05,2]
[407746136,1772736642088,-689.0,7.973e-05,2]
[407746137,1772736642099,-151.0,7.973e-05,2]
[407746138,1772736642108,-689.0,7.973e-05,2]
[407746139,1772736642119,-151.0,7.973e-05,2]
[407746140,1772736642129,-151.0,7.973e-05,2]
[407746141,1772736642138,-151.0,7.973e-05,2]
[407746142,1772736642147,-151.0,7.973e-05,2]
[407746143,1772736642156,-151.0,7.973e-05,2]
[407746144,1772736642165,-151.0,7.973e-05,2]
[407746145,1772736642174,-292.0,7.973e-05,2]
[407746146,1772736642184,-338.0,7.973e-05,2]
[407746147,1772736642193,-338.0,7.973e-05,2]
[407746148,1772736642203,-163.43040921,7.973e-05,2]
[407746149,1772736642213,-508.8,7.99e-05,2]
[407746150,1772736642223,-155591.83061663,8e-05,2]
[407746151,1772736642233,-2486.7430939,8e-05,2]
[407746152,1772736642243,-154.0,8e-05,2]
[407746153,1772736642252,-154.0,8e-05,2]
[407746154,1772736642262,-2188.0,8.018e-05,2]
[407746155,1772736642271,-638.0,8.018e-05,2]
[407746156,1772736642281,-1390.0,8.018e-05,2]
[407746157,1772736642295,-731.0,8.018e-05,2]
[407746158,1772736642313,-9166.03745179,8.088e-05,2]
[407746159,1772736642322,-501.79,8.1e-05,2]
[407746160,1772736642331,-3000.0,8.1e-05,30]
[407746161,1772736642340,-2773.56790519,8.102e-05,2]
[407746162,1772736642350,-161.86716562,8.107e-05,2]
[407746163,1772736642359,-3000.0,8.11e-05,30]
[407746164,1772736642369,-3000.0,8.12e-05,30]
[407746165,1772736642378,-3000.0,8.13e-05,30]
[407746166,1772736642387,-3000.0,8.14e-05,30]
[407746167,1772736642397,-3000.0,8.15e-05,30]
[407746168,1772736642407,-3000.0,8.16e-05,30]
[407746169,1772736642420,-3000.0,8.17e-05,30]
[407746170,1772736642430,-3000.0,8.18e-05,30]
[407746171,1772736642439,-3000.0,8.19e-05,30]
[407746172,1772736642450,-153.85,8.2e-05,2]
[407746173,1772736642459,-10061.37257443,8.2e-05,2]
[407746174,1772736642468,-3000.0,8.2e-05,30]
[407746175,1772736642478,-250.0,8.2e-05,2]
[407746176,1772736642489,-250.0,8.2e-05,2]
[407746177,1772736642499,-250.0,8.2e-05,2]
[407746178,1772736642509,-250.0,8.2e-05,2]
[407746179,1772736642518,-238.2,8.2e-05,2]
[407746180,1772736642527,-3000.0,8.21e-05,30]
[407746181,1772736642536,-500.0,8.219e-05,2]
[407746182,1772736642546,-500.0,8.219e-05,2]
[407746183,1772736642555,-151.4207714,8.219e-05,2]
[407746184,1772736642563,-151.37638117,8.219e-05,2]
[407746185,1772736642573,-500.0,8.219e-05,2]
[407746186,1772736642582,-250.0,8.219e-05,2]
[407746187,1772736642591,-500.0,8.219e-05,2]
[407746188,1772736642601,-500.0,8.219e-05,2]
[407746189,1772736642611,-159.90490311,8.219e-05,2]
[407746190,1772736642620,-500.0,8.219e-05,2]
[407746191,1772736642629,-500.0,8.219e-05,2]
[407746192,1772736642638,-500.0,8.219e-05,2]
[407746193,1772736642647,-484.0,8.219e-05,2]
[407746194,1772736642656,-241.40127307,8.219e-05,2]
[407746195,1772736642666,-185.4062112,8.219e-05,2]
[407746196,1772736642675,-500.0,8.219e-05,2]
[407746197,1772736642685,-3000.0,8.22e-05,30]
[407746198,1772736642694,-4858.139201,8.23e-05,30]
[407746199,1772736642703,-500.0,8.274e-05,2]
[407746200,1772736642712,-500.0,8.274e-05,2]
[407746201,1772736642722,-153.37259684,8.274e-05,2]
[407746202,1772736642731,-500.0,8.274e-05,2]
[407746203,1772736642739,-500.0,8.274e-05,2]
[407746204,1772736642748,-500.0,8.274e-05,2]
[407746205,1772736642757,-154.48464515,8.274e-05,2]
[407746206,1772736642766,-150.25852917,8.274e-05,2]
[407746207,1772736642776,-194.6591236,8.274e-05,2]
[407746208,1772736642786,-231.31294402,8.274e-05,2]
[407746209,1772736642795,-214.78794242,8.274e-05,2]
[407746210,1772736642804,-500.0,8.274e-05,2]
[407746211,1772736642813,-500.0,8.274e-05,2]
[407746212,1772736642822,-500.0,8.274e-05,2]
[407746213,1772736642831,-484.0,8.274e-05,2]
[407746214,1772736642840,-500.0,8.329e-05,2]
[407746215,1772736642849,-500.0,8.329e-05,2]
[407746216,1772736642858,-500.0,8.329e-05,2]
[407746217,1772736642868,-500.0,8.329e-05,2]
[407746218,1772736642877,-500.0,8.329e-05,2]
[407746219,1772736642887,-500.0,8.329e-05,2]
[407746220,1772736642896,-500.0,8.329e-05,2]
[407746221,1772736642905,-200.0,8.329e-05,2]
[407746222,1772736642914,-500.0,8.329e-05,2]
[407746223,1772736642923,-484.0,8.329e-05,2]
[407746224,1772736642932,-338.21958631,8.383e-05,2]
[407746225,1772736642941,-502.71577406,8.383e-05,2]
[407746226,1772736642951,-500.0,8.383e-05,2]
[407746227,1772736642960,-500.0,8.383e-05,2]
[407746228,1772736642969,-500.0,8.383e-05,2]
[407746229,1772736642979,-500.0,8.383e-05,2]
[407746230,1772736642988,-500.0,8.383e-05,2]
[407746231,1772736642997,-500.0,8.383e-05,2]
[407746232,1772736643006,-484.0,8.383e-05,2]
[407746233,1772736643015,-500.0,8.438e-05,2]
[407746234,1772736643024,-500.0,8.438e-05,2]
[407746235,1772736643033,-250.0,8.438e-05,2]
[407746236,1772736643042,-500.0,8.438e-05,2]
[407746237,1772736643051,-300.0,8.438e-05,2]
[407746238,1772736643060,-500.0,8.438e-05,2]
[407746239,1772736643070,-500.0,8.438e-05,2]
[407746240,1772736643079,-484.0,8.438e-05,2]
[407746241,1772736643088,-155.40074411,8.493e-05,2]
[407746242,1772736643098,-500.0,8.493e-05,2]
[407746243,1772736643107,-500.0,8.493e-05,2]
[407746244,1772736643116,-500.0,8.493e-05,2]
[407746245,1772736643125,-500.0,8.493e-05,2]
[407746246,1772736643135,-500.0,8.493e-05,2]
[407746247,1772736643144,-484.0,8.493e-05,2]
[407746248,1772736643153,-500.0,8.493e-05,2]
[407746249,1772736643163,-153.85,8.5e-05,2]
[407746250,1772736643172,-300.000001,8.5e-05,2]
[407746251,1772736643181,-512.08351367,8.548e-05,2]
[407746252,1772736643191,-500.0,8.548e-05,2]
[407746253,1772736643201,-500.0,8.548e-05,2]
[407746255,1772736643210,-500.0,8.548e-05,2]
[407746257,1772736643219,-244.08322859,8.548e-05,2]
[407746259,1772736643229,-484.0,8.548e-05,2]
[407746262,1772736643238,-11581.06302656,8.548e-05,2]
[407746264,1772736643247,-500.0,8.603e-05,2]
[407746267,1772736643257,-500.0,8.603e-05,2]
[407746270,1772736643267,-500.0,8.603e-05,2]
[407746271,1772736643277,-484.0,8.603e-05,2]
[407746273,1772736643287,-1000.0,8.635e-05,2]
[407746275,1772736643297,-1000.0,8.635e-05,2]
[407746277,1772736643307,-1000.0,8.635e-05,2]
[407746278,1772736643317,-2876.18991768,8.65e-05,2]
[407746279,1772736643327,-500.0,8.657e-05,2]
[407746280,1772736643337,-500.0,8.657e-05,2]
[407746281,1772736643347,-484.0,8.657e-05,2]
[407746282,1772736643356,-415.93522163,8.712e-05,2]
[407746283,1772736643366,-500.0,8.712e-05,2]
[407746284,1772736643375,-484.0,8.712e-05,2]
[407746286,1772736643385,-500.0,8.767e-05,2]
[407746288,1772736643394,-484.0,8.767e-05,2]
[407746289,1772736643405,-500.0,8.767e-05,2]
[407746290,1772736643418,-153.85,8.8e-05,2]
[407746291,1772736643428,-500.0,8.822e-05,2]
[407746292,1772736643438,-484.0,8.822e-05,2]
[407746293,1772736643448,-346.22388045,8.851e-05,2]
[407746294,1772736643458,-374.23461839,8.877e-05,2]
[407746295,1772736643467,-484.0,8.877e-05,2]
[407746296,1772736643478,-10000.0,8.9e-05,2]
[407746298,1772736643488,-250.0,8.9e-05,2]
[407746300,1772736643497,-250.0,8.9e-05,2]
[407746301,1772736643506,-1930.19383776,8.91e-05,15]
[407746303,1772736643516,-484.0,8.931e-05,2]
[407746304,1772736643525,-7811.18103047,8.986e-05,2]
[407746305,1772736643534,-484.0,8.986e-05,2]
[407746306,1772736643544,-508.8,8.99e-05,2]
[407746307,1772736643555,-3365.06006404,9e-05,2]
[407746308,1772736643565,-18841.50793793,9e-05,2]
[407746310,1772736643766,-3174.77063615,5e-05,2]
[407746311,1772736643777,-277.51305616,9e-05,2]
[407746312,1772736643788,-28688.66882499,9e-05,2]
[407746313,1772736643800,-3795.1,9e-05,2]
[407746314,1772736643812,-1283.82286199,9e-05,2]
[407746315,1772736643824,-1316.27915126,9e-05,2]
[407746316,1772736643836,-41118.81175925,9e-05,2]
[407746317,1772736643851,-361.0,9e-05,2]
[407746318,1772736643863,-701.62763894,9e-05,2]
[407746319,1772736643875,-318.84759742,9e-05,2]
[407746320,1772736643887,-274.6353357,9e-05,2]
[407746321,1772736643898,-1382.8,9e-05,2]
[407746322,1772736643910,-771.14628782,9e-05,2]
[407746323,1772736643923,-493.6422938,9e-05,2]
[407746339,1772736646487,-400.0,9e-05,2]
[407746346,1772736646539,-8256.02981824,9e-05,2]
[407746371,1772736851000,-2000.0,0.00012,60]
[407746372,1772736852618,-2000.0,0.00012,60]
[407746373,1772736853496,-2000.0,0.00012,60]
[407746374,1772736854324,-2000.0,0.00012,60]
[407746375,1772736855060,-2000.0,0.00012,60]
[407746376,1772736864990,-6.58500589,0.00012,60]
[407746391,1772737680378,167.71,3.8e-06,2]
[407746392,1772737680677,167.69,3.8e-06,2]
[407746393,1772737750055,4391.7308,1e-05,2]
[407746420,1772737831544,-1109.415346,2.624e-05,2]
[407746422,1772737831555,-203.0611873,2.624e-05,2]
[407746424,1772737831564,-110.0934667,2.631e-05,2]
[407746458,1772737837580,-101.44499194,2.631e-05,2]
[407746460,1772737837589,-208.98169625,2.734e-05,2]
[407746465,1772737837633,-900.43364975,2.734e-05,2]
[407746467,1772737837643,-1000.0,2.785e-05,2]
[407746469,1772737837652,-1109.415346,2.845e-05,2]
[407746471,1772737837662,-1109.415346,2.955e-05,2]
[407746473,1772737837671,-1200.0,3.064e-05,2]
[407746475,1772737837680,-1109.415346,3.066e-05,2]
[407746477,1772737837690,-300.0,3.175e-05,2]
[407746479,1772737837699,-300.0,3.175e-05,2]
[407746481,1772737837709,-300.0,3.175e-05,2]
[407746483,1772737837718,-300.0,3.175e-05,2]
[407746486,1772737837727,-223.18626008,3.176e-05,2]
[407746488,1772737837739,-886.22908592,3.176e-05,2]
[407746490,1772737837748,-300.0,3.493e-05,2]
[407746492,1772737837758,-300.0,3.493e-05,2]
[407746494,1772737837768,-249.6153812,4.631e-05,2]
[407746496,1772737837779,-181.73167254,4.7e-05,2]
[407746498,1772737837789,-249.04178116,4.7e-05,2]
[407746499,1772737837798,-241.48028979,4.7e-05,2]
[407746501,1772737837807,-230.64274585,4.7e-05,2]
[407746503,1772737837817,-2456.75968471,4.8e-05,2]
[407746505,1772737837827,-6085.74450985,4.8e-05,2]
[407746507,1772737837837,-5226.16816337,4.8e-05,2]
[407746509,1772737837848,-1599.85631976,4.8e-05,2]
[407746512,1772737837859,-4758.93906886,4.8e-05,2]
[407746514,1772737837868,-5792.48177594,4.8e-05,2]
[407746516,1772737837877,-34613.15708648,4.8e-05,2]
[407746518,1772737837888,-414.06079803,4.8e-05,2]
[407746674,1772737840026,-603.519,4.8e-05,2]
[407746730,1772737842814,-668.19735541,4.8e-05,2]
[407746731,1772737842869,-1738.99624944,4.8e-05,2]
[407746743,1772737845951,-128512.92846679,4.8e-05,2]
[407746744,1772737846008,-3906.88525155,4.8e-05,2]
[407746745,1772737846315,-8808.133403,4.8e-05,2]
[407746758,1772738551585,-10279.899998,0.0001571,120]
[407746759,1772738551732,-10279.899998,0.00015813,120]
[407746760,1772738551765,-29160.300006,0.00015813,120]
[407746942,1772739031668,-578.53698373,3.64e-05,2]
[407746944,1772739031679,-212.04853137,3.668e-05,2]
[407746946,1772739031688,-666.8624171,3.714e-05,2]
[407746948,1772739031697,-832.60894499,4.383e-05,3]
[407747039,1772739036145,-167.39105501,4.383e-05,3]
[407747040,1772739036155,-300.0,4.452e-05,2]
[407747041,1772739036164,-1200.0,4.452e-05,2]
[407747042,1772739036175,-1958.80081307,4.453e-05,2]
[407747043,1772739036188,-889.51719788,4.453e-05,2]
[407747089,1772739038173,-1045081.7869256,4.453e-05,2]
[407747091,1772739040278,-3684.70325648,4.453e-05,2]
[407747117,1772739044081,-2087.47085234,4.453e-05,2]
[407747129,1772739045210,-4740.16662601,4.453e-05,2]
[407747130,1772739045224,-1050.59287838,4.453e-05,2]
[407747131,1772739045235,-10431.54697042,4.453e-05,2]
[407747132,1772739045247,-445.37030241,4.453e-05,2]
[407747133,1772739045265,-1226.05301822,4.453e-05,2]
[407747134,1772739045277,-2270.28557348,4.453e-05,2]
[407747137,1772739045746,-83992.03560214,4.453e-05,2]
[407747139,1772739045803,-5661.95488558,4.453e-05,2]
[407747140,1772739045815,-1721.52235704,4.453e-05,2]
[407747141,1772739045826,-14942.98633211,4.453e-05,2]
[407747142,1772739045838,-1257.87188007,4.453e-05,2]
[407747143,1772739045913,-346.38830132,4.453e-05,2]
[407747169,1772739483851,508.72,3.8e-06,2]
[407747170,1772739484805,508.72,3.8e-06,2]
[407747188,1772740231855,-454.0,4.074e-05,2]
[407747190,1772740231865,-227.10943008,4.115e-05,2]
[407747192,1772740231875,-208.97497127,4.157e-05,2]
[407747194,1772740231884,-150.31925351,4.2e-05,2]
[407747196,1772740231893,-150.81337241,4.2e-05,2]
[407747198,1772740231903,-172.0,4.252e-05,2]
[407747200,1772740231913,-300.0,4.252e-05,2]
[407747202,1772740231923,-300.0,4.252e-05,2]
[407747204,1772740231936,-244.0,4.252e-05,2]
[407747205,1772740231946,-293.32866769,4.252e-05,2]
[407747351,1772740237962,-906.67133231,4.252e-05,2]
[407747352,1772740237973,-62073.20180611,4.253e-05,2]
[407747373,1772740243137,-121629.51982346,4.21e-05,2]
[407747374,1772740243147,-4158.82046408,4.21e-05,2]
[407747375,1772740243158,-729.67770619,4.21e-05,2]
[407747376,1772740243169,-25641.72079803,4.21e-05,2]
[407747377,1772740243251,-366.40905996,4.21e-05,2]
[407747381,1772740246058,-740.0,4.21e-05,2]
[407747382,1772740246070,-3071.39409852,4.21e-05,2]
[407747456,1772740474271,10279.899998,0.00015709,120]
[407747457,1772740537709,-5976.4364387,0.00015709,120]
[407747458,1772740537735,-3047.1271226,0.00015813,120]
[407747536,1772741285993,237.4,3.8e-06,2]
[407747537,1772741286326,237.4,3.8e-06,2]
[407747538,1772741286644,237.39,3.8e-06,2]
[407747568,1772741431958,-376.5556878,3.114e-05,2]
[407747569,1772741431968,-165.0,3.899e-05,2]
[407747570,1772741431977,-1200.0,3.899e-05,2]
[407747571,1772741431987,-1000.0,3.899e-05,3]
[407747573,1772741431996,-4579.12584913,3.9e-05,2]
[407747575,1772741432006,-11334.66357307,3.9e-05,2]
[407747576,1772741432015,-2008.82392761,4.011e-05,2]
[407747577,1772741432025,-222.56724148,4.052e-05,2]
[407747578,1772741432035,-61429.11441422,4.053e-05,2]
[407747579,1772741432046,-367.38335282,4.053e-05,2]
[407747580,1772741432057,-673.41,4.053e-05,2]
[407747581,1772741432068,-1125.98825827,4.053e-05,2]
[407747582,1772741432079,-6148.68833818,4.053e-05,2]
[407747598,1772741438164,-1152.14854256,4.053e-05,2]
[407747599,1772741438219,-1321.8647845,4.053e-05,2]
[407747600,1772741438230,-1709.57854349,4.053e-05,2]
[407747601,1772741438242,-3096.06153313,4.053e-05,2]
[407747642,1772741440481,-2087.47085234,4.012e-05,2]
[407747644,1772741440491,-23867.24668841,4.053e-05,2]
[407747646,1772741440503,-398.00552291,4.053e-05,2]
[407747860,1772741443107,-11900.50929992,4.053e-05,2]
[407747861,1772741443119,-4640.01197933,4.053e-05,2]
[407747862,1772741443131,-435.0,4.053e-05,2]
[407747863,1772741443216,-4635.35155661,4.053e-05,2]
[407747874,1772741446644,-5776.6292399,4.053e-05,2]
[407747875,1772741446655,-460.54,4.053e-05,2]
[407747887,1772742346711,1000.0,0.000157,120]
[407747888,1772742400929,168.254567,2.854e-05,21]
[407747889,1772742401123,168.254567,2.854e-05,41]
[407747890,1772742401343,168.254567,2.854e-05,61]
[407747891,1772742401552,168.254567,2.854e-05,80]
[407747892,1772742402750,168.254567,2.854e-05,100]
[407747893,1772742402783,168.254567,2.854e-05,120]
[407747959,1772742612053,-500.0,8.1e-05,30]
[407747960,1772742624383,-168.254567,2.854e-05,2]
[407747983,1772742632586,-228.02415208,3.277e-05,2]
[407747984,1772742632596,-150.5047684,3.7e-05,2]
[407747986,1772742632606,-151.28550801,3.7e-05,2]
[407747987,1772742632615,-151.51550037,3.7e-05,2]
[407747988,1772742632625,-150.21040736,3.7e-05,2]
[407747989,1772742632634,-150.67040184,3.7e-05,2]
[407747990,1772742632644,-150.53571267,3.7e-05,2]
[407747991,1772742632653,-150.61414536,3.7e-05,2]
[407747992,1772742632663,-131.93750749,3.774e-05,2]
[407747993,1772742632674,-1068.06249251,3.774e-05,2]
[407747994,1772742632684,-302.73848456,3.775e-05,2]
[407747995,1772742632694,-300.0,3.798e-05,2]
[407747996,1772742632704,-190.77999627,3.8e-05,2]
[407747997,1772742632713,-277.21858001,3.8e-05,2]
[407747998,1772742632723,-253.57847824,3.8e-05,2]
[407747999,1772742632732,-267.50266529,3.8e-05,2]
[407748000,1772742632742,-284.07469873,3.8e-05,2]
[407748001,1772742632751,-314.69130496,3.8e-05,2]
[407748002,1772742632762,-202.82229622,3.8e-05,2]
[407748003,1772742632771,-130.60515778,3.8e-05,2]
[407748005,1772742632795,-171.50176169,3.8e-05,2]
[407748006,1772742632804,-753.83455327,3.853e-05,2]
[407748007,1772742632816,-1259.76709414,3.853e-05,2]
[407748013,1772742639000,-137327.87597679,3.853e-05,2]
[407748014,1772742639057,-1577.58650617,3.814e-05,2]
[407748015,1772742639068,-500.002552,3.814e-05,2]
[407748062,1772742642173,-1116.41928518,3.814e-05,2]
[407748099,1772742643437,-2107.64814455,3.814e-05,2]
[407748101,1772742643449,-413.00477556,3.814e-05,2]
[407748103,1772742643459,-247.10755844,3.853e-05,2]
[407748119,1772742643597,-29719.74378261,3.853e-05,2]
[407748121,1772742643608,-1307.64036902,3.853e-05,2]
[407748173,1772742646407,-62562.62916009,3.853e-05,2]
[407748174,1772742646516,-10824.20915647,3.853e-05,2]
[407748175,1772742646530,-251.2277259,3.853e-05,2]
[407748176,1772742670572,-168.254567,3.852e-05,2]
[407748180,1772743083027,166.18,3.8e-06,2]
[407748181,1772743083385,166.18,3.8e-06,2]
[407748182,1772743083650,166.18,3.8e-06,2]
[407748239,1772743832229,-165.78854723,3.423e-05,2]
[407748241,1772743832238,-253.0904364,3.462e-05,2]
[407748243,1772743832248,-173.32267691,3.5e-05,2]
[407748245,1772743832257,-222.81938286,3.5e-05,2]
[407748246,1772743832266,-167.12197404,3.5e-05,2]
[407748249,1772743832278,-42.17444889,3.5e-05,2]
[407748250,1772743832287,-217.26230162,3.5e-05,2]
[407748252,1772743832296,-161.88404953,3.6e-05,2]
[407748254,1772743832306,-1200.0,3.65e-05,2]
[407748256,1772743832315,-300.0,3.651e-05,2]
[407748259,1772743832324,-300.0,3.651e-05,2]
[407748261,1772743832333,-300.0,3.651e-05,2]
[407748262,1772743832343,-300.0,3.651e-05,2]
[407748264,1772743832352,-300.0,3.652e-05,2]
[407748266,1772743832361,-46810.53664015,3.653e-05,2]
[407748268,1772743832373,-670.94,3.653e-05,2]